bitfinex-derivatives/quotes_ETHF0:USTF0_20251126
["timestamp","ask_amount","ask_price","bid_price","bid_amount"]
[1764151329370,0.00419493,2913.2,2913.0,0.93147646]
[1764151329371,0.4952,2913.5,2913.4,0.4725]
[1764151329576,0.4952,2913.5,2913.4,1.13277646]
[1764151329779,0.7888,2913.5,2913.4,1.13277646]
[1764151330472,0.79277228,2913.5,2913.4,1.13277646]
[1764151331184,0.7873,2914.0,2913.9,0.4725]
[1764151331380,1.61857773,2914.0,2913.9,1.13277646]
[1764151331877,1.61857773,2914.0,2913.9,0.4725]
[1764151332074,1.61857773,2914.0,2913.9,1.13277646]
[1764151332275,1.62259002,2914.0,2913.9,1.13526778]
[1764151332575,1.62259002,2914.0,2913.9,0.66276778]
[1764151333480,0.79131229,2914.0,2913.9,0.66276778]
[1764151334776,0.79131229,2914.0,2913.9,1.13526778]
[1764151335382,0.79281229,2914.0,2913.9,1.13526778]
[1764151335578,0.49921229,2914.0,2913.9,1.13526778]
[1764151335773,0.00401229,2914.0,2913.9,1.13526778]
[1764151335973,0.49921229,2914.0,2913.9,1.13526778]
[1764151336481,0.00401229,2914.0,2913.9,1.13526778]
[1764151337278,1.418734,2914.7,2914.6,0.4725]
[1764151337469,1.32518197,2914.7,2914.5,0.66027646]
[1764151337674,0.4952,2914.6,2914.5,1.13277646]
[1764151337975,1.217134,2915.0,2914.5,0.5679]
[1764151338170,0.4952,2914.9,2914.8,1.13277646]
[1764151338369,0.49798899,2914.9,2914.8,1.13277646]
[1764151338578,0.49798899,2914.9,2914.8,0.66027646]
[1764151339369,0.4952,2914.7,2914.0,0.2712]
[1764151339569,0.4952,2914.6,2914.5,0.66027646]
[1764151340785,0.4952,2914.6,2914.5,1.13277646]
[1764151341584,0.00278899,2914.9,2914.5,1.13277646]
[1764151341776,0.49798899,2914.9,2914.8,1.13277646]
[1764151342177,0.4952,2914.9,2914.8,0.4725]
[1764151342374,0.4952,2914.9,2914.8,0.66027646]
[1764151342684,0.2936,2915.5,2914.8,1.13277646]
[1764151342883,0.4952,2915.3,2915.2,0.66027646]
[1764151343081,0.4989049,2915.3,2915.2,0.66027646]
[1764151343482,0.4989049,2915.3,2915.2,1.13277646]
[1764151343692,0.2936,2916.0,2915.2,1.13277646]
[1764151343887,0.7888,2916.0,2915.9,0.66027646]
[1764151344286,0.7888,2916.0,2915.9,1.13277646]
[1764151344781,0.79299546,2916.0,2915.9,0.66027646]
[1764151345789,0.4952,2915.8,2915.7,0.66027646]
[1764151346084,0.4952,2915.6,2915.5,0.66027646]
[1764151346390,0.4952,2915.4,2915.3,0.66542411]
[1764151347086,0.4952,2915.4,2915.3,0.00514765]
[1764151348390,1.32170709,2915.4,2915.3,0.00514765]
[1764151350297,0.82650709,2915.4,2915.3,1.13792411]
[1764151350485,0.29779546,2916.0,2915.3,0.66542411]
[1764151350787,0.29779546,2916.0,2915.6,0.66027646]
[1764151350788,0.4952,2915.7,2915.6,0.66027646]
[1764151350993,0.4952,2915.7,2915.6,1.13277646]
[1764151351204,0.29779546,2916.0,2915.6,1.13277646]
[1764151351394,0.4952,2915.9,2915.8,0.66027646]
[1764151352096,0.4952,2915.9,2915.8,1.13277646]
[1764151355700,0.29779546,2916.0,2915.3,0.00514765]
[1764151355701,0.4531,2915.7,2915.3,0.00514765]
[1764151355899,0.4531,2915.4,2915.3,0.46074765]
[1764151356102,0.4531,2915.4,2915.3,0.00514765]
[1764151357295,0.4531,2915.4,2915.3,0.66542411]
[1764151357696,0.4531,2915.4,2915.3,1.12102411]
[1764151360301,0.4531,2915.4,2915.3,0.66542411]
[1764151360697,0.4531,2915.4,2915.3,1.12102411]
[1764151361204,0.17157,2915.6,2915.5,0.4556]
[1764151361394,0.17157,2915.6,2915.5,1.11587646]
[1764151361595,0.99266196,2915.6,2915.5,1.11587646]
[1764151362399,0.17157,2915.6,2915.5,1.11587646]
[1764151362603,1.22132946,2916.0,2915.5,1.38507646]
[1764151362796,0.4531,2915.8,2915.7,1.11587646]
[1764151362993,1.27450544,2915.8,2915.7,1.11587646]
[1764151363197,0.82140544,2915.8,2915.7,1.11587646]
[1764151363405,0.4531,2916.3,2916.2,0.4556]
[1764151363700,0.4531,2916.3,2916.2,1.11587646]
[1764151364204,0.4531,2916.3,2916.2,0.4556]
[1764151364402,0.45611527,2916.3,2916.2,0.45911281]
[1764151365195,0.00301527,2916.3,2916.2,0.45911281]
[1764151366798,0.45611527,2916.3,2916.2,0.45911281]
[1764151368000,0.00301527,2916.3,2916.2,0.45911281]
[1764151368201,0.7467,2917.0,2916.9,0.4556]
[1764151368505,0.4531,2917.0,2916.9,0.4556]
[1764151369206,0.45644365,2917.0,2916.9,0.4556]
[1764151369710,0.4531,2916.8,2916.7,1.09762552]
[1764151369902,0.4531,2916.8,2916.5,0.2692]
[1764151370206,0.4531,2916.8,2916.7,0.4556]
[1764151370598,0.45644365,2917.0,2916.9,0.4556]
[1764151371908,0.00334365,2917.0,2916.9,0.4556]
[1764151373111,1.22816456,2917.5,2917.0,0.2692]
[1764151373112,0.7377,2917.5,2917.0,0.2692]
[1764151373405,0.7377,2917.5,2917.4,0.4556]
[1764151373612,0.4531,2917.1,2916.5,0.2692]
[1764151373907,0.4531,2917.0,2916.9,0.4556]
[1764151374211,0.6657,2917.0,2916.9,0.4556]
[1764151374811,0.4531,2916.8,2916.7,0.00514765]
[1764151375504,1.26523144,2916.8,2916.7,0.46074765]
[1764151376810,0.4531,2916.8,2916.7,0.46074765]
[1764151377207,0.62841926,2917.1,2917.0,0.4556]
[1764151377398,0.6657,2917.0,2916.9,0.4556]
[1764151377603,1.47772279,2917.0,2916.9,0.4556]
[1764151377806,0.4531,2916.8,2916.7,0.46074765]
[1764151378707,0.17531926,2917.1,2916.9,0.4556]
[1764151378904,0.62841926,2917.1,2917.0,0.4556]
[1764151379104,1.44047566,2917.1,2917.0,0.4556]
[1764151379809,1.44047566,2917.1,2916.7,0.00514765]
[1764151379810,0.4531,2917.0,2916.9,0.4556]
[1764151380005,0.4531,2916.8,2916.7,0.46074765]
[1764151380205,0.4531,2916.8,2916.7,0.00514765]
[1764151380607,1.2653577,2916.8,2916.7,0.00514765]
[1764151381215,0.4531,2916.6,2916.5,0.1]
[1764151381404,1.26540146,2916.6,2916.5,0.1]
[1764151385116,1.43691146,2916.6,2916.5,0.1]
[1764151386217,0.4648,2916.4,2916.3,0.00514765]
[1764151386604,1.27710146,2916.4,2916.3,0.00514765]
[1764151386811,0.4597,2916.3,2916.2,0.00351281]
[1764151387011,1.27200146,2916.3,2916.2,0.00351281]
[1764151390822,1.27200146,2916.3,2914.5,0.2692]
[1764151390823,0.2842,2915.0,2914.5,0.2692]
[1764151391116,0.4597,2914.1,2914.0,0.4886]
[1764151391323,0.4597,2914.1,2913.5,0.2831]
[1764151391527,0.2845,2914.0,2913.5,0.2831]
[1764151391824,0.00821716,2914.0,2913.5,0.29163957]
[1764151392015,0.29271716,2914.0,2913.5,0.29163957]
[1764151394714,0.00821716,2914.0,2913.9,0.4886]
[1764151396813,0.4558,2915.0,2914.0,0.2831]
[1764151397820,0.00514765,2914.8,2914.0,0.2831]
[1764151398020,0.00514765,2914.8,2914.7,0.4886]
[1764151398324,0.4597,2914.1,2914.0,0.7717]
[1764151398526,0.2849,2914.5,2914.0,0.7717]
[1764151399027,0.4597,2914.5,2914.4,0.4886]
[1764151399422,0.51310025,2914.5,2914.4,0.4886]
[1764151400723,0.00514765,2914.8,2914.7,0.4886]
[1764151400929,0.17156,2915.8,2915.0,0.2831]
[1764151401926,0.00514765,2915.7,2915.1,0.00514765]
[1764151402720,0.00514765,2915.7,2915.6,0.4886]
[1764151402931,0.00514765,2915.7,2915.6,0.49233308]
[1764151405729,0.46484765,2915.7,2915.6,0.49233308]
[1764151405926,0.00514765,2915.7,2915.6,0.49233308]
[1764151407232,0.45641,2916.5,2915.7,0.4886]
[1764151407631,0.17152,2916.4,2915.7,0.4886]
[1764151408233,0.00511757,2916.3,2915.7,0.4886]
[1764151410737,0.17664757,2916.3,2915.7,0.4886]
[1764151411240,0.4597,2915.8,2915.7,0.4886]
[1764151411536,0.17664757,2916.3,2915.7,0.4886]
[1764151411939,0.4597,2915.8,2915.7,0.4886]
[1764151413330,0.17664757,2916.3,2915.7,0.4886]
[1764151415334,0.17154,2916.1,2915.7,0.4886]
[1764151415739,0.4597,2915.8,2915.7,0.4886]
[1764151417633,0.00511757,2916.3,2915.8,0.4545]
[1764151417826,0.00511757,2916.3,2915.6,0.00373308]
[1764151417827,0.46421757,2916.3,2916.2,0.4545]
[1764151418233,0.4591,2916.1,2915.6,0.00373308]
[1764151418538,0.4591,2915.7,2915.6,0.45823308]
[1764151419428,0.00511757,2916.3,2916.2,0.4545]
[1764151420538,0.4591,2916.1,2915.6,0.00373308]
[1764151420934,0.4591,2916.1,2916.0,0.4545]
[1764151421836,0.00511757,2916.3,2916.2,0.4545]
[1764151422534,0.46421757,2916.3,2916.2,0.4545]
[1764151422730,0.00511757,2916.3,2916.2,0.4545]
[1764151425537,1e-08,2916.4,2916.3,0.4545]
[1764151427745,0.17147,2917.4,2916.3,0.4545]
[1764151427950,1.26540663,2917.3,2917.2,0.4545]
[1764151428344,0.4591,2917.3,2917.2,0.4545]
[1764151428648,0.17147,2917.4,2917.3,0.4545]
[1764151428947,0.17395133,2917.4,2917.3,0.4545]
[1764151429444,0.63305133,2917.4,2917.3,0.4545]
[1764151429950,0.63305133,2917.4,2917.0,0.22654765]
[1764151430548,0.4591,2917.1,2917.0,0.68104765]
[1764151432253,0.63305133,2917.4,2917.3,0.4545]
[1764151432555,0.00248133,2917.4,2917.3,0.4545]
[1764151432747,0.46158133,2917.4,2917.3,0.4545]
[1764151434151,0.00248133,2917.4,2917.3,0.4545]
[1764151435046,0.46158133,2917.4,2917.0,0.22654765]
[1764151435245,0.46158133,2917.4,2917.3,0.4545]
[1764151441163,0.00248133,2917.4,2917.3,0.4545]
[1764151443654,0.17144,2917.8,2917.3,0.4545]
[1764151443867,0.63054,2917.8,2917.7,0.4545]
[1764151444272,1.26375972,2917.8,2917.7,0.4545]
[1764151444469,0.4591,2917.8,2917.7,0.4545]
[1764151444666,0.736,2918.0,2917.9,0.4588]
[1764151444961,1.54318287,2918.0,2917.9,0.4588]
[1764151445357,1.25488287,2918.0,2917.9,0.4588]
[1764151446664,0.80718287,2918.0,2917.9,0.4588]
[1764151447365,0.00247044,2918.0,2917.9,0.4588]
[1764151447561,0.92026369,2918.4,2917.7,0.00341141]
[1764151447562,0.92026369,2918.5,2918.3,0.4833]
[1764151447767,1.39946369,2918.7,2918.6,0.4833]
[1764151447967,2.20445385,2918.7,2918.6,0.4833]
[1764151448367,1.72525385,2918.7,2918.6,0.4833]
[1764151448562,2.20870262,2918.7,2918.6,0.4833]
[1764151448868,1.72950262,2918.7,2918.6,0.4833]
[1764151449061,0.80923893,2918.7,2918.6,0.4833]
[1764151449262,2.20870262,2918.7,2918.6,0.4833]
[1764151450169,1.28843893,2918.7,2918.6,0.4833]
[1764151450558,0.00424877,2918.7,2918.6,0.4833]
[1764151450765,0.48344877,2918.7,2918.6,0.4833]
[1764151450970,0.00424877,2918.7,2918.6,0.4833]
[1764151451775,0.48344877,2918.7,2918.6,0.4833]
[1764151454382,0.48344877,2918.7,2918.0,0.2804]
[1764151455567,0.00424877,2918.7,2918.6,0.4833]
[1764151455772,0.48344877,2918.7,2918.6,0.4833]
[1764151456564,0.00424877,2918.7,2918.6,0.4833]
[1764151456976,0.48344877,2918.7,2918.6,0.4833]
[1764151457377,0.48344877,2918.7,2918.1,0.956]
[1764151457972,0.48344877,2918.7,2918.0,0.2804]
[1764151459881,0.65483877,2918.7,2918.0,0.2804]
[1764151460580,0.4792,2918.1,2918.0,0.7637]
[1764151460779,0.2804,2918.5,2918.0,0.7637]
[1764151461969,0.4792,2918.5,2918.4,0.4833]
[1764151462479,0.48344877,2918.7,2918.6,0.4833]
[1764151462879,1.28828341,2918.7,2918.6,0.4833]
[1764151463279,0.4792,2918.6,2918.5,0.4833]
[1764151463675,0.4792,2918.6,2918.5,0.7637]
[1764151464081,0.48344877,2918.7,2918.6,0.4833]
[1764151465687,0.48344877,2918.7,2918.0,0.2804]
[1764151468081,0.4792,2918.1,2918.0,0.7637]
[1764151469784,0.4792,2917.8,2917.7,0.48671141]
[1764151470883,0.4792,2918.0,2917.9,0.4833]
[1764151471691,0.4792,2917.8,2917.7,0.48671141]
[1764151472684,0.4792,2917.8,2917.7,0.00341141]
[1764151474293,0.4792,2917.8,2917.7,0.48671141]
[1764151475288,0.7596,2918.0,2917.9,0.4833]
[1764151475492,1.28685613,2918.0,2917.9,0.4833]
[1764151475796,1.56235613,2918.0,2917.9,0.4833]
[1764151476593,1.56235613,2918.0,2917.9,0.65810485]
[1764151476786,0.4773,2917.8,2917.7,1.11591626]
[1764151476990,0.92026369,2918.3,2917.9,0.4544]
[1764151477291,0.4773,2918.3,2918.2,1.11250485]
[1764151477483,1.2850576,2918.3,2918.2,1.11250485]
[1764151477690,0.8077576,2918.3,2918.2,1.11250485]
[1764151477889,0.48154877,2918.7,2918.6,0.4544]
[1764151478086,1.28924993,2918.7,2918.6,0.4544]
[1764151479090,0.81194993,2918.7,2918.6,0.4544]
[1764151480189,0.00424877,2918.7,2918.6,0.4544]
[1764151481603,0.48154877,2918.7,2918.5,0.65810485]
[1764151481797,0.4773,2918.6,2918.5,1.11250485]
[1764151481997,0.284,2918.5,2918.3,0.65810485]
[1764151482201,0.4773,2918.4,2918.3,1.11250485]
[1764151486598,0.4773,2918.4,2918.3,0.4544]
[1764151487296,0.4773,2918.4,2918.0,2.1040378]
[1764151487498,0.4773,2917.9,2917.8,1.8316378]
[1764151487696,0.4773,2917.8,2917.7,0.45781141]
[1764151493613,0.4773,2917.8,2917.7,0.00341141]
[1764151494106,0.4773,2917.8,2917.7,0.45781141]
[1764151494308,0.4773,2917.8,2917.7,0.00341141]
[1764151495503,1.28514573,2917.8,2917.7,0.00341141]
[1764151498525,0.80784573,2917.8,2917.7,0.45781141]
[1764151498732,1.28514573,2917.8,2917.7,0.45781141]
[1764151498933,0.80784573,2917.8,2917.7,0.45781141]
[1764151499433,0.17143,2917.9,2917.8,0.4544]
[1764151499931,1.45628662,2917.9,2917.8,0.4544]
[1764151500433,0.64873,2917.9,2917.8,0.4544]
[1764151501532,0.92026369,2918.3,2917.8,0.4544]
[1764151501730,0.80807597,2918.2,2917.8,0.4544]
[1764151501927,1.28537597,2918.1,2917.7,0.00341141]
[1764151502123,0.4773,2917.8,2917.7,0.00341141]
[1764151502428,0.4773,2917.8,2917.7,0.45781141]
[1764151502824,0.4773,2917.8,2917.7,0.00341141]
[1764151503328,0.4556,2917.1,2917.0,0.00514765]
[1764151504029,1.26383782,2917.1,2917.0,0.00514765]
[1764151504332,0.4556,2917.1,2917.0,0.00761124]
[1764151504628,0.4556,2916.3,2916.2,0.481]
[1764151505431,0.4967,2916.1,2916.0,0.7391]
[1764151505623,0.49994595,2916.1,2916.0,0.47071596]
[1764151506028,0.49994595,2916.1,2916.0,0.00401596]
[1764151506330,0.4967,2915.9,2915.8,0.00514765]
[1764151506926,0.4967,2915.9,2915.0,0.2685]
[1764151507528,0.4967,2915.9,2915.0,0.27276609]
[1764151507736,0.4967,2915.1,2915.0,0.00426609]
[1764151508826,0.4967,2914.9,2914.8,0.00514765]
[1764151509027,0.4967,2914.9,2913.7,0.488]
[1764151509932,0.4967,2914.3,2914.2,0.00514765]
[1764151510325,0.00514765,2914.7,2914.2,0.47184765]
[1764151510644,0.00514765,2914.7,2914.2,0.00514765]
[1764151510645,0.4967,2914.3,2914.2,0.00514765]
[1764151511823,0.4967,2914.1,2914.0,0.00358265]
[1764151512028,0.2787,2914.0,2913.0,0.2849]
[1764151512327,0.2787,2914.0,2913.0,0.9139]
[1764151512831,0.2787,2914.0,2913.2,0.00514765]
[1764151513034,0.28278539,2914.0,2913.2,0.00514765]
[1764151513633,0.4967,2913.3,2913.2,0.47184765]
[1764151513938,0.28278539,2914.0,2913.2,0.47184765]
[1764151515135,0.4967,2913.3,2913.2,0.47184765]
[1764151516329,0.28278539,2914.0,2913.2,0.47184765]
[1764151517135,0.50078539,2914.0,2913.9,0.4667]
[1764151517633,0.50078539,2914.0,2913.5,0.2849]
[1764151517937,0.77948539,2914.0,2913.5,0.2849]
[1764151518140,0.50078539,2914.0,2913.9,0.4667]
[1764151518839,0.4967,2913.6,2913.5,0.7516]
[1764151519637,0.28278539,2914.0,2913.5,0.7516]
[1764151520141,0.77948539,2914.0,2913.9,0.4667]
[1764151520539,0.77948539,2914.0,2913.5,0.2849]
[1764151521738,0.77948539,2914.0,2913.9,0.4667]
[1764151522737,0.77948539,2914.0,2913.5,0.2849]
[1764151527732,0.4967,2913.3,2913.2,0.47184765]
[1764151528139,0.4967,2913.5,2913.4,0.4667]
[1764151528644,0.28278539,2914.0,2913.5,0.2849]
[1764151528844,0.28278539,2914.0,2913.5,0.7516]
[1764151530045,0.4967,2913.6,2913.5,0.7516]
[1764151530946,0.00408539,2914.0,2913.9,0.4667]
[1764151531149,0.2787,2915.0,2914.6,0.4667]
[1764151531742,0.4967,2914.5,2914.4,1.52157603]
[1764151532145,0.49951553,2914.5,2914.4,1.52157603]
[1764151532954,0.00281553,2914.5,2914.4,1.52157603]
[1764151534654,0.49951553,2914.5,2914.4,0.4667]
[1764151535462,0.77791553,2914.5,2914.4,0.4667]
[1764151535655,0.77791553,2914.5,2914.0,0.2217]
[1764151537161,0.49951553,2914.5,2914.4,0.4949]
[1764151537461,1.30976363,2914.5,2914.4,0.4949]
[1764151539466,0.81306363,2914.5,2914.4,0.4949]
[1764151540264,1.28576363,2914.5,2914.4,0.4949]
[1764151540956,0.81306363,2914.5,2914.4,0.4949]
[1764151541154,2.73957026,2915.5,2914.6,0.4949]
[1764151541155,0.92283511,2915.3,2914.6,0.4949]
[1764151541354,0.92283511,2915.4,2914.6,0.4949]
[1764151542158,0.00762007,2914.7,2914.6,0.4949]
[1764151543565,0.2787,2915.5,2915.4,0.4949]
[1764151543566,0.4727,2915.5,2915.4,0.4949]
[1764151543762,1.28253758,2915.5,2915.4,0.4949]
[1764151544559,1.28698255,2915.5,2915.4,0.49837262]
[1764151545355,0.47714497,2915.5,2915.4,0.49837262]
[1764151545560,0.75554497,2915.5,2915.4,0.00347262]
[1764151545756,1.5650122,2915.5,2915.4,0.00347262]
[1764151546467,0.75554497,2915.5,2915.4,0.00347262]
[1764151549466,0.92711497,2915.5,2915.2,0.00514765]
[1764151549666,0.4727,2914.6,2914.5,0.4949]
[1764151549968,0.4727,2914.6,2914.5,0.7682]
[1764151550471,0.17158,2915.4,2914.9,0.4949]
[1764151550675,0.4727,2915.1,2915.0,1.13770813]
[1764151551175,0.4727,2915.1,2915.0,0.64280813]
[1764151552671,0.4727,2915.1,2915.0,0.6593652]
[1764151553478,0.7511,2915.0,2914.9,0.00514765]
[1764151553669,0.7511,2915.0,2914.9,0.66451285]
[1764151555080,0.7511,2915.0,2914.9,1.15941285]
[1764151556088,0.17158,2915.4,2915.0,0.2733]
[1764151556274,1.28277816,2915.3,2915.2,0.6593652]
[1764151558389,1.28277816,2915.3,2915.2,1.1542652]
[1764151558879,0.81007816,2915.3,2915.2,1.1542652]
[1764151559076,0.4727,2915.0,2914.9,0.00514765]
[1764151559281,0.4727,2915.0,2914.9,1.15941285]
[1764151559481,0.4727,2915.1,2915.0,0.7682]
[1764151560490,0.47714497,2915.5,2915.4,0.4949]
[1764151560689,0.81648347,2915.5,2915.4,1.1542652]
[1764151560904,0.00444497,2915.5,2915.4,1.1542652]
[1764151561189,0.4727,2916.3,2916.2,0.4949]
[1764151561391,0.4727,2916.1,2916.0,0.4949]
[1764151561591,0.4727,2916.1,2916.0,1.1542652]
[1764151561792,1.28462915,2916.1,2916.0,1.1542652]
[1764151561991,1.28879916,2916.1,2916.0,1.1542652]
[1764151562292,0.47687001,2916.1,2916.0,1.1542652]
[1764151562485,0.47687001,2916.1,2916.0,0.4949]
[1764151563084,0.47687001,2916.1,2915.6,0.94876555]
[1764151565695,0.4724,2915.7,2915.6,0.4564]
[1764151567185,0.2874,2916.0,2915.6,0.4564]
[1764151567382,0.4724,2916.0,2915.9,0.4564]
[1764151570584,0.7452,2916.0,2915.5,0.2767]
[1764151572697,0.4724,2916.0,2915.9,0.4564]
[1764151572998,0.00417001,2916.1,2916.0,0.7331]
[1764151573790,0.47657001,2916.1,2916.0,0.4564]
[1764151574792,0.47657001,2916.1,2915.7,0.94876555]
[1764151574995,0.4724,2915.8,2915.7,0.4564]
[1764151575795,0.00417001,2916.1,2916.0,0.4564]
[1764151576099,0.47657001,2916.1,2916.0,0.4564]
[1764151577291,0.47657001,2916.1,2916.0,0.7331]
[1764151578599,0.4724,2915.8,2915.7,0.4564]
[1764151579004,0.47657001,2916.1,2916.0,0.4564]
[1764151579302,0.2929,2916.0,2915.5,0.2767]
[1764151582603,0.7653,2916.0,2915.9,0.65898059]
[1764151583504,0.7653,2916.0,2915.9,1.11538059]
[1764151586408,0.4724,2915.6,2915.5,0.4564]
[1764151586700,0.2728,2915.5,2915.1,1.8316378]
[1764151587007,0.7452,2915.5,2915.4,0.65898059]
[1764151587901,0.4724,2915.0,2914.9,1.12052824]
[1764151588598,0.17158,2915.4,2915.0,0.2767]
[1764151588801,1.28518385,2915.3,2915.2,1.11538059]
[1764151589804,1.28518385,2915.3,2915.2,0.65898059]
[1764151590205,1.28476893,2915.3,2915.2,0.65898059]
[1764151590911,0.4724,2915.2,2915.1,1.11538059]
[1764151591206,1.28476893,2915.2,2915.1,1.11538059]
[1764151591405,0.4724,2915.2,2915.1,1.11538059]
[1764151593507,0.4724,2915.2,2914.9,0.00514765]
[1764151593710,0.4724,2915.0,2914.9,0.46154765]
[1764151593913,0.4724,2915.0,2914.9,1.12052824]
[1764151602120,0.17158,2915.4,2915.0,0.2981]
[1764151602318,0.4533,2915.2,2915.1,0.65898059]
[1764151603515,0.7246,2915.0,2914.9,0.46844765]
[1764151603714,0.7246,2915.0,2914.9,1.12742824]
[1764151604022,0.4533,2915.0,2914.9,1.12742824]
[1764151609525,0.7246,2915.0,2914.9,0.46844765]
[1764151609726,0.7246,2915.0,2914.9,0.00514765]
[1764151610818,0.7246,2915.0,2914.9,0.46844765]
[1764151611728,0.7246,2915.0,2914.9,0.00514765]
[1764151612228,1.53638295,2915.0,2914.9,0.00514765]
[1764151614736,1.26508295,2915.0,2914.9,0.46844765]
[1764151615731,1.53638295,2915.0,2914.9,0.46844765]
[1764151617234,1.53638295,2915.0,2914.9,0.00514765]
[1764151619437,1.26508295,2915.0,2914.9,0.46844765]
[1764151620138,0.81178295,2915.0,2914.9,0.46844765]
[1764151620346,0.92318266,2915.6,2915.4,0.4633]
[1764151620543,0.4533,2915.5,2915.4,0.4633]
[1764151620942,0.7246,2915.0,2914.9,1.85218414]
[1764151621142,0.7246,2915.0,2914.9,0.00514765]
[1764151621341,1.24149463,2915.5,2915.0,0.2981]
[1764151621644,0.4533,2915.1,2915.0,0.7614]
[1764151621842,0.7246,2915.0,2914.9,0.00514765]
[1764151623047,0.77161197,2915.0,2914.9,0.00514765]
[1764151628737,0.77161197,2915.0,2914.5,0.00265081]
[1764151628949,0.4863,2914.6,2914.5,0.45645081]
[1764151629450,0.4863,2914.6,2914.5,0.00265081]
[1764151630149,0.53331197,2914.6,2914.5,0.00265081]
[1764151632447,1.34475199,2914.6,2914.5,0.00265081]
[1764151641562,0.4863,2914.4,2914.3,0.00514765]
[1764151642160,0.53331197,2914.4,2914.3,0.00514765]
[1764151642658,1.34470454,2914.4,2914.3,0.00921644]
[1764151645447,1.34470454,2914.4,2913.8,0.64296357]
[1764151645647,0.81139257,2914.3,2913.8,0.64296357]
[1764151645856,0.04701197,2914.4,2913.8,0.64296357]
[1764151646057,1.2974669,2914.3,2914.2,0.4538]
[1764151646257,1.34447887,2914.3,2914.2,0.45745025]
[1764151649871,1.34447887,2914.3,2914.2,0.00365025]
[1764151650671,0.53331197,2914.3,2914.2,0.00365025]
[1764151651866,1.34330552,2914.3,2914.2,0.00365025]
[1764151653373,1.34330552,2914.3,2914.2,0.45745025]
[1764151653670,1.34330552,2914.3,2914.2,0.00365025]
[1764151656268,1.34330552,2914.3,2914.2,0.45745025]
[1764151663379,1.34330552,2914.3,2914.2,0.00365025]
[1764151664676,1.34330552,2914.3,2914.2,0.48415025]
[1764151664876,1.34330552,2914.3,2914.2,0.00365025]
[1764151672080,0.85700552,2914.3,2914.2,1.12711382]
[1764151672674,1.33410552,2914.3,2914.2,1.12711382]
[1764151674589,1.33410552,2914.3,2914.2,1.14377875]
[1764151675687,1.33410552,2914.3,2914.2,0.00365025]
[1764151677385,1.33410552,2914.3,2914.2,0.48415025]
[1764151678593,1.33410552,2914.3,2914.2,0.00365025]
[1764151680789,1.33410552,2914.3,2914.2,0.48415025]
[1764151680999,0.85700552,2914.3,2914.2,0.48415025]
[1764151681392,1.33410552,2914.3,2914.2,0.48415025]
[1764151681893,1.33410552,2914.3,2914.2,0.00365025]
[1764151683094,1.33410552,2914.3,2914.2,0.48415025]
[1764151685395,0.85700552,2914.3,2914.2,0.48415025]
[1764151685896,1.30960552,2914.3,2914.2,0.48415025]
[1764151692306,1.30960552,2914.3,2914.2,0.00365025]
[1764151698317,1.30960552,2914.3,2914.2,0.47595025]
[1764151699914,1.30960552,2914.3,2914.2,0.00365025]
[1764151701019,1.42523235,2914.3,2914.2,0.00365025]
[1764151701314,2.2352259,2914.3,2914.2,0.00365025]
[1764151704122,1.30960552,2914.3,2914.2,0.66327875]
[1764151704324,1.30960552,2914.3,2914.2,1.13557875]
[1764151705221,0.85700552,2914.3,2914.2,1.13557875]
[1764151705420,0.93076803,2914.8,2914.7,0.4723]
[1764151705724,0.00514765,2914.8,2914.7,1.1319285]
[1764151706923,0.4526,2915.6,2915.5,0.4723]
[1764151707119,0.4526,2915.6,2915.5,1.1319285]
[1764151707312,1.26182044,2915.6,2915.5,0.4723]
[1764151707513,1.26182044,2915.6,2914.6,2.47436359]
[1764151707514,0.7478,2914.5,2914.3,1.84674926]
[1764151707724,0.4526,2914.3,2914.2,1.85039951]
[1764151708026,0.4526,2914.3,2914.2,0.00365025]
[1764151712023,0.45774765,2914.5,2914.4,0.4723]
[1764151712327,0.45774765,2914.5,2914.2,0.66327875]
[1764151712328,0.4526,2914.3,2914.2,1.13557875]
[1764151712820,0.4526,2914.3,2914.2,0.00365025]
[1764151713023,0.4526,2914.3,2914.2,0.47595025]
[1764151713327,0.45774765,2914.5,2914.4,0.4723]
[1764151713630,0.45774765,2914.5,2914.4,1.1319285]
[1764151715615,0.00514765,2914.5,2914.4,1.1319285]
[1764151717417,0.49274765,2914.5,2914.4,1.1319285]
[1764151717625,0.77164765,2914.5,2914.4,1.1319285]
[1764151717833,0.49274765,2914.5,2914.4,1.1319285]
[1764151718732,0.77164765,2914.5,2914.4,1.1319285]
[1764151718930,0.49274765,2914.5,2914.4,1.1319285]
[1764151719430,0.00514765,2914.5,2914.4,1.1319285]
[1764151720527,0.77164765,2914.5,2914.2,0.00365025]
[1764151720730,0.4876,2914.3,2914.2,0.49215025]
[1764151723433,0.28404765,2914.5,2914.4,0.4885]
[1764151723434,0.49274765,2914.5,2914.4,0.4885]
[1764151723729,0.00514765,2914.5,2914.4,1.1481285]
[1764151724128,0.92444944,2915.4,2915.1,0.4885]
[1764151724435,0.4876,2915.5,2915.4,0.4885]
[1764151724728,1.29628412,2915.5,2915.4,0.4885]
[1764151724934,0.4876,2915.5,2915.4,0.4885]
[1764151725131,0.4876,2914.9,2914.8,2.33247496]
[1764151725437,0.44458,2915.5,2914.9,0.4885]
[1764151725732,0.4876,2914.8,2914.7,0.4885]
[1764151726136,0.2789,2915.0,2914.7,0.4885]
[1764151726137,0.4876,2915.0,2914.9,0.4885]
[1764151727930,0.4876,2915.0,2914.9,1.1481285]
[1764151729341,0.273,2915.5,2915.0,0.2882]
[1764151729526,0.4876,2915.3,2915.2,1.1481285]
[1764151731131,0.4876,2915.3,2915.2,0.4885]
[1764151732141,0.4876,2915.1,2915.0,0.6596285]
[1764151732338,0.273,2915.5,2914.6,1.1481285]
[1764151732339,0.4876,2914.7,2914.6,1.1481285]
[1764151732644,0.2789,2915.0,2914.6,1.1481285]
[1764151732835,0.4876,2915.0,2914.9,0.4885]
[1764151735537,0.7665,2915.0,2914.5,2.13217496]
[1764151735742,0.7665,2915.0,2914.6,0.6596285]
[1764151736442,0.7665,2915.0,2914.9,0.4885]
[1764151738646,0.4876,2915.0,2914.9,0.4885]
[1764151743044,0.273,2915.5,2915.0,0.297]
[1764151743240,0.273,2915.5,2915.3,0.4526]
[1764151743241,0.4948,2915.4,2915.3,0.4526]
[1764151745949,0.00514765,2915.7,2915.3,0.4526]
[1764151746145,1.28498974,2915.6,2915.5,0.7235]